Cogmind - Beta 11.1 @@@ ROGUE MODE // 2022.05.12 @ 23:42:06 Player: Olga Result: Self-destructed Performance ------------- Evolutions (3) 1500 Regions Visited (4) 800 Robots Destroyed (0) 0 Value Destroyed (90) 90 Prototype IDs (0) 0 Alien Tech Used (0) 0 Bonus (834) 834 TOTAL SCORE: 3224 Bonus ------- Pacifist 834 Cogmind --------- Core Integrity 481/700 Matter 270/300 Energy 100/100 System Corruption 0% Temperature Cool (0) Movement Core (50) Location -7/Factory Parts ------- > --- POWER (7) -------- (None) > --- PROPULSION (2) --- (None) > --- UTILITY (2) ------ (None) > --- WEAPON (2) ------- (None) > --- INVENTORY (5) ---- Mini Grenade Launcher Peak State ------------ > --- POWER ------------ (None) > --- PROPULSION ------- (None) > --- UTILITY ---------- (None) > --- WEAPON ----------- Mini Grenade Launcher > --- INVENTORY -------- (None) [Rating: 2] Favorites ----------- Power None Propulsion None Utility None Weapon Mini Grenade Launcher Launcher Mini Grenade Launcher Build | -11 -10 -9 -8 -7 ------- Run | Scr Mat Mat Mat Fac Slots Evolved 6 | . . 2 2 2 Power 6 | . . 2 2 2 Propulsion . | . . . . . Utility . | . . . . . Weapon . | . . . . . Parts Attached 1 | . . . . 1 Power . | . . . . . Engine . | . . . . . Core . | . . . . . Reactor . | . . . . . Propulsion . | . . . . . Treads . | . . . . . Leg . | . . . . . Wheel . | . . . . . Hover . | . . . . . Flight . | . . . . . Utility . | . . . . . Device . | . . . . . Storage . | . . . . . Processor . | . . . . . Hackware . | . . . . . Protection . | . . . . . Artifact . | . . . . . Weapon 1 | . . . . 1 Energy Gun . | . . . . . Energy Cannon . | . . . . . Ballistic Gun . | . . . . . Ballistic Cannon . | . . . . . Launcher 1 | . . . . 1 Special Weapon . | . . . . . Impact Weapon . | . . . . . Slashing Weapon . | . . . . . Piercing Weapon . | . . . . . Special Melee Weapon . | . . . . . Unidentified Prototypes . | . . . . . Parts Lost . | . . . . . Power . | . . . . . Propulsion . | . . . . . Utility . | . . . . . Weapon . | . . . . . Highest Loss Streak . | . . . . . To Critical Strikes . | . . . . . Average Slot Usage (%) . | . . . . . Naked Turns 139 | . 19 43 34 43 Heaviest Build 11 | 11 . . . . Greatest Support 20 | 20 3 3 3 3 Greatest Overweight (x) . | . . . . . Average Overweight (x) . | . . . . . Largest Inventory Capacity 5 | . 5 5 5 5 Average Capacity 5 | . 5 5 5 5 Most Carried 4 | . 4 1 1 1 Average Carried . | . . . 1 . Final Capacity 8 | 8 5 5 5 5 Final Carried 6 | 6 . 1 1 1 Class Distribution -------------------- 100% | Mutant Dominant Class ---------------- Mutant | -9/Materials Mutant | -8/Materials Mutant | -7/Factory Resources | -11 -10 -9 -8 -7 ----------- Run | Scr Mat Mat Mat Fac Matter Collected 200 | 200 . . . . Remotely . | . . . . . Salvage Created . | . . . . . Parts . | . . . . . Haulers Intercepted . | . . . . . Recyclers Shooed . | . . . . . Parts Field Recycled . | . . . . . Retrieved Matter . | . . . . . Parts Self-Destructed . | . . . . . Prevented . | . . . . . Kills | -11 -10 -9 -8 -7 ------- Run | Scr Mat Mat Mat Fac Combat Hostiles Destroyed . | . . . . . Classes Destroyed . | . . . . . Best Kill Streak . | . . . . . Combat Bots Only . | . . . . . Max Kills in Single Turn . | . . . . . Gunslinging . | . . . . . Exploded . | . . . . . Melee . | . . . . . Uniques/NPCs Destroyed . | . . . . . Combat | -11 -10 -9 -8 -7 -------- Run | Scr Mat Mat Mat Fac Damage Taken 316 | . 4 . 93 219 Core 316 | . 4 . 93 219 Absorbed by Shields . | . . . . . Core Remaining (%) 95 | 100 98 100 83 . Volleys Fired 2 | . . . . 2 Largest 1 | . . . . 1 Hottest 30 | . . . . 30 Shots Fired 2 | . . . . 2 Gun . | . . . . . Cannon . | . . . . . Launcher 2 | . . . . 2 Special . | . . . . . Kinetic . | . . . . . Thermal . | . . . . . Explosive 2 | . . . . 2 Electromagnetic . | . . . . . Robot Hit Streak . | . . . . . Robot Miss Streak . | . . . . . Penetration Max . | . . . . . Secondary Targets . | . . . . . Shots Hit Robots . | . . . . . Core Hits . | . . . . . Critical Kills . | . . . . . Critical Parts Destroyed . | . . . . . Critical Strikes . | . . . . . Melee Attacks . | . . . . . Impact . | . . . . . Slashing . | . . . . . Piercing . | . . . . . Sneak Attacks . | . . . . . Combat Hostiles . | . . . . . Follow-up Attacks . | . . . . . Damage Inflicted 93 | . 9 . . 84 Guns . | . . . . . Cannons . | . . . . . Explosions 84 | . . . . 84 Melee . | . . . . . Ramming 9 | . 9 . . . Kinetic . | . . . . . Thermal 84 | . . . . 84 Explosive . | . . . . . Electromagnetic . | . . . . . Impact . | . . . . . Slashing . | . . . . . Piercing . | . . . . . Highest Corruption . | . . . . . Average Corruption . | . . . . . Corruption Purged . | . . . . . Corruption Blocked . | . . . . . Overload Shots . | . . . . . Overflow Damage 44 | . . . . 44 Projectiles . | . . . . . Explosions 44 | . . . . 44 Melee . | . . . . . Knockbacks . | . . . . . Impact . | . . . . . Kinetic . | . . . . . Secondary . | . . . . . Self-Inflicted Damage 180 | . 4 . . 176 Shots 2 | . . . . 2 Rammed 1 | . 1 . . . Targets Rammed 1 | . 1 . . . Kicked . | . . . . . Crushed . | . . . . . Highest Temperature . | . . . . . Average Temperature . | . . . . . Received Heat Transfer 75 | . . . 63 12 Siege Activations . | . . . . . Robots Corrupted . | . . . . . Combat Hostiles . | . . . . . Parts Fried . | . . . . . Impact Corruptions . | . . . . . Robots Melted . | . . . . . Combat Hostiles . | . . . . . Parts Melted . | . . . . . Heat Transferred 50 | . . . . 50 Parts Sabotaged . | . . . . . Parts Stolen . | . . . . . Parts Stripped . | . . . . . Power Chain Reactions . | . . . . . Missiles Intercepted . | . . . . . Alert | -11 -10 -9 -8 -7 ------- Run | Scr Mat Mat Mat Fac Peak Influence 280 | . 15 20 53 280 Initial 23 | . . 5 8 23 Average 67 | . 2 8 28 174 Maximum Alert Level 1 | . . . . 1 Low Security (%) 75 | . 100 100 100 25 Level 1 25 | . . . . 75 Level 2 . | . . . . . Level 3 . | . . . . . Level 4 . | . . . . . Level 5 . | . . . . . High Security . | . . . . . Max Security . | . . . . . Squads Dispatched 4 | . . . 1 3 Investigation . | . . . . . Extermination . | . . . . . Reinforcement 2 | . . . 1 1 Assault . | . . . . . Garrison 2 | . . . . 2 Intercept . | . . . . . Searches Triggered . | . . . . . Construction Impeded . | . . . . . Haulers Reinforced . | . . . . . Active Scanning Responses . | . . . . . Cargo Convoy Interrupts . | . . . . . Stealth | -11 -10 -9 -8 -7 --------- Run | Scr Mat Mat Mat Fac Distress Signals 1 | . . . 1 . Communications Jammed . | . . . . . Distress Signals . | . . . . . Times Spotted 16 | . 1 1 7 7 Peak Tracking Total 8 | . 1 1 8 5 Tactical Retreats 2 | . . . 1 1 Traps | -11 -10 -9 -8 -7 ------- Run | Scr Mat Mat Mat Fac Traps Triggered . | . . . . . Indirectly . | . . . . . Trap Hack Attempts . | . . . . . Triggered . | . . . . . Disarmed . | . . . . . Reprogrammed . | . . . . . Reused . | . . . . . Traps Extracted . | . . . . . Installed . | . . . . . Triggered . | . . . . . Machines | -11 -10 -9 -8 -7 ---------- Run | Scr Mat Mat Mat Fac Machines Disabled 9 | . . . . 9 Max in Single Turn 9 | . . . . 9 Machines Sabotaged . | . . . . . Garrisons Compromised . | . . . . . Overloaded Fab Kills . | . . . . . Hacking | -11 -10 -9 -8 -7 --------- Run | Scr Mat Mat Mat Fac Machines Accessed 1 | . . . . 1 Terminals 1 | . . . . 1 Fabricators . | . . . . . Repair Stations . | . . . . . Recycling Units . | . . . . . Scanalyzers . | . . . . . Garrison Access . | . . . . . Total Hacks 1 | . . . . 1 Successful 1 | . . . . 1 Failed . | . . . . . Catastrophic . | . . . . . Database Lockouts . | . . . . . Manual . | . . . . . Terminals 1 | . . . . 1 Fabricators . | . . . . . Repair Stations . | . . . . . Recycling Units . | . . . . . Scanalyzers . | . . . . . Garrison Access . | . . . . . Terminal Hacks 1 | . . . . 1 Open DSF 1 | . . . . 1 Fabricator Hacks . | . . . . . Repair Station Hacks . | . . . . . Recycling Unit Hacks . | . . . . . Scanalyzer . | . . . . . Garrison Access Hacks . | . . . . . Unauthorized Hacks . | . . . . . Terminals . | . . . . . Fabricators . | . . . . . Repair Stations . | . . . . . Recycling Units . | . . . . . Scanalyzers . | . . . . . Garrison Access . | . . . . . Data Cores Recovered . | . . . . . Used . | . . . . . Hacking Detections 1 | . . . . 1 Full Trace Events . | . . . . . Feedback Events . | . . . . . Feedback Blocked . | . . . . . Robot Schematics Acquired . | . . . . . Robots Built . | . . . . . Authchips . | . . . . . Time . | . . . . . Total Robot Build Rating . | . . . . . Part Schematics Acquired . | . . . . . Parts Built . | . . . . . Authchips . | . . . . . Time . | . . . . . Total Part Build Rating . | . . . . . Parts Repaired . | . . . . . Time . | . . . . . Parts Recycled . | . . . . . Recycled Matter . | . . . . . Retrieved Matter . | . . . . . Retrieved Components . | . . . . . Parts Scanalyzed . | . . . . . Part Schematics Acquired . | . . . . . Parts Damaged . | . . . . . Bothacking | -11 -10 -9 -8 -7 ------------ Run | Scr Mat Mat Mat Fac Used RIF Installer . | . . . . . Robots Hacked . | . . . . . Non-combat . | . . . . . Combat . | . . . . . Robot Hacks Applied . | . . . . . Relay Couplers Released . | . . . . . Fabnet Peak Effective % . | . . . . . Robots Rewired . | . . . . . Allies Hacked . | . . . . . Hacks Repelled . | . . . . . Allies | -11 -10 -9 -8 -7 -------- Run | Scr Mat Mat Mat Fac Total Allies . | . . . . . Largest Group . | . . . . . Highest-Rated Group . | . . . . . Highest-Rated Ally . | . . . . . Total Orders . | . . . . . Ally Attacks . | . . . . . Total Damage . | . . . . . Kills . | . . . . . Allies Corrupted . | . . . . . Allies Melted . | . . . . . Intel | -11 -10 -9 -8 -7 ------- Run | Scr Mat Mat Mat Fac Robot Analysis Total . | . . . . . Derelict Logs Recovered . | . . . . . Drone Launches . | . . . . . Drone Recoveries . | . . . . . Exploration | -11 -10 -9 -8 -7 ------------- Run | Scr Mat Mat Mat Fac Turns Passed 144 | . 19 43 34 48 Spaces Moved 266 | 1 31 83 68 83 Core 265 | . 31 83 68 83 Treads . | . . . . . Legs 1 | 1 . . . . Wheels . | . . . . . Hover . | . . . . . Flight . | . . . . . Fastest Speed 50 | 120 50 50 50 50 Average Speed 50 | 120 50 50 50 50 Slowest Speed 120 | 120 50 50 50 50 Overloaded Moves . | . . . . . Propulsion Burnouts . | . . . . . Robots Hopped . | . . . . . Cave-ins Triggered . | . . . . . Exploration Rate (%) 8 | 2 10 12 10 6 Regions Visited 4 Branch Regions . Pre-discovered Areas . | . . . . . Known Exits Taken . | . . . . . Unknown Exits Taken 4 | 1 1 1 1 . Scrap Searched . | . . . . . Spaces Dug . | . . . . . Terrain Destroyed 48 | . . . . 48 Melee . | . . . . . Projectile . | . . . . . AOE 48 | . . . . 48 Terrain Rammed . | . . . . . Walls Destroyed . | . . . . . Machines Disabled . | . . . . . Actions | -11 -10 -9 -8 -7 --------- Run | Scr Mat Mat Mat Fac Total 273 | . 36 83 67 87 Wait . | . . . . . Move 262 | . 30 82 67 83 Hop . | . . . . . Pick Up 1 | . . 1 . . Fast Attach . | . . . . . Attach 1 | . . . . 1 Detach 1 | . . . . 1 Swap . | . . . . . Drop 5 | . 5 . . . Fire 2 | . . . . 2 Melee . | . . . . . Ram 1 | . 1 . . . Kick . | . . . . . Crush . | . . . . . Escape Stasis . | . . . . . Rewire . | . . . . . Trap . | . . . . . Miscellaneous . | . . . . . Route ------- -11/Scrapyard -10/Materials -9/Materials -8/Materials -7/Factory History --------- Turn | Location | Event 1 | -11/Scrapyard | Discovered new exit (range 0) 1 | -11/Scrapyard | Entered Materials 1 | -10/Materials | Released all parts (6) 18 | -10/Materials | Discovered new exit (range 5) 20 | -10/Materials | Entered another Materials area 20 | -9/Materials | Evolved 2 slots: Power x2 57 | -9/Materials | Discovered new exit (range 12) 63 | -9/Materials | Entered another Materials area 63 | -8/Materials | Evolved 2 slots: Power x2 90 | -8/Materials | Discovered new exit (range 16) 97 | -8/Materials | Entered Factory 97 | -7/Factory | Evolved 2 slots: Power x2 145 | -7/Factory | Self-destructed Last Messages --------------- M007. 00064_ O-16 Technician locks terminal. 00081_ K-01 Serf collects debris. 00086_ W-25 Informer sends out distress signal. 00086_ Slug penetrates Wall. 00089_ T-07 Excavator is excavating. 00090_ EXIT=FOUND 00091_ Critical hit (Burn: +37). 00093_ T-07 Excavator is excavating. PARAMETERS=POWER+2 LOCATION=UNKNOWN GOAL=ESCAPE 00109_ Fusion Modulator explodes. 00111_ ALERT: Hostiles spotted, dispatching reinforcements to Terminal F015. 00111_ ALERT: All DSF locations entering lockdown mode. 00111_ K-01 Serf collects debris. 00137_ K-01 Serf cleans the Neutrino Reactor. 00138_ Connecting with DSF Access... 00138_ Current location identified: Factory Map ----- +----------------------------------------------------+ | ????????"""" ?# #?? """????????????????????? | | ???????????" # # """"???????????????????? | | ???????????" + + """"???????????????????? | | ?????????""" # # #???????????????? | | ???????? # #?? #???????????????? | | ??????? """" ?# #???? #???????????????? | | ????????""""??# #?????? #???????????????? | | ??????????"???# #???????? ????????????????? | | ??????????????# #?????????? ????????????????? | | ??????????????# #????????????????????????????? | | ??????????????# #????????????????????????????? | | ??????????????# #????????????????????????????? | | ??????????????# ####?????????????????????????? | | ??????????????# #T ############??????????????? | | ??????????????# #??????????????? | | ??????????????# w #??????????????? | | ??????????????# """ """ +??????????????? | | ??????????????# """ """ #??????????????? | | ??????????????# """ """ +??????????????? | | ??????????????# ########??????????????? | | ???????????#### #?????????????????????? | | ?????????? #?????????????????????? | | ?????????? #?????????????????????? | | ?????????? k ! #?????????????????????? | | ?????????? """"""""" #?????????????????????? | | ??????????????""""""""" @ #?????????????????????? | | ????????????????""""""" w #?????????????????????? | | ??????????????????""""" #?????????????????????? | | ???????????????????"""" ?????????????????????? | | ???????????????????"""" ????????????????????? | | ??????????????????? ???????????????????? | | ?????????????????? ???????????????????? | | ?????????????????? ""??????????????????? | | ??????????????????#### """?????????????????? | | ?????????????????????# """ ????????????????? | | ?????????????????????# ??????????????????? | | ?????????????????????# ??????????????????? | | ?????????????????????# ??????????????????? | | ?????????????????????# ??????????????????? | | ?????????????????????# ???????????????????? | | ???????????????????????#####?????????????????????? | | ?????????????????????????????????????????????????? | | ?????????????????????????????????????????????????? | | ?????????????????????????????????????????????????? | | ?????????????????????????????????????????????????? | | ?????????????????????????????????????????????????? | | ?????????????????????????????????????????????????? | | ?????????????????????????????????????????????????? | | ?????????????????????????????????????????????????? | | ?????????????????????????????????????????????????? | +----------------------------------------------------+ Best States ------------- Heat Dissipation 34 Energy Generation 5 Energy Capacity 100 Matter Stores 300 Matter Capacity 300 Sight Range 16 Terrain Scan Density 10 Evasion (%) 50 Item Schematics ----------------- None Robot Schematics ------------------ None Fabricated ------------ Nothing Alien Tech Used ----------------- None Achievements -------------- None Challenges ------------ None Game ------ Seed helloworld Manual? 1 Play Time 00:02:41 Cumulative 252.0 hours Start 2022.05.12 @ 23:38:58 End 2022.05.12 @ 23:42:06 Sessions 3 Manual Loads 0 Difficulty Rogue Special Mode None Game No. 366 Rogue 363 Adventurer 0 Explorer 3 Win Type - Total 8 Types 8/0/0/0/0/0/0/0/0 Lore% 71 Gallery% 75 Achievement% 62 Wizard Run 0 Options --------- ASCII 1 Keyboard 1 Movement Vi Keybinds 0 Fullscreen 1 Font 18/SmallcapsGlow Map View 76x50 Tactical HUD 1 Map Filters NONE Filters NONE Steam 1 RUN: b33a9a0d-3a55-4c21-a32a-1651f6f83448